{"text_format":"1","workbook":"xlsx","n_sheets":1,"sheets":["Лист1"],"not_rendered":{"charts":0,"images":0,"macros":1,"external_links":0,"defined_names":0,"comments":0,"pivot_tables":0},"unopened":[],"bounds":{"document_bytes":16777216,"sheet_cells":100000,"rows_first":2000,"rows_last":500,"rows_between":2000,"halvings":0,"cell_chars":16384,"cell_head_chars":4096},"cells_cut":0,"cells_raw":0,"read":"whole","date_system":"1900"}

{"sheet":"Лист1","index":0,"n_rows":38,"n_cols":3,"rows_kept":38,"cut":false,"hidden":false,"merged":[]}
["Проценты, записаные в цифрах","Наименование ткани","Общий состав изделия"]
[7,"эластан",{"$f":"IF(A2=\"\",\"\",ailist(A2:B2))","v":"7% эластан"}]
[93,"модал",{"$f":"IF(A3=\"\",\"\",ailist(A3:B3))","v":"93% модал"}]
[null,null,""]
[null,null,""]
[null,null,""]
[20,"эластан","20% эластан"]
[23,"полиэстр","23% полиэстр"]
[57,"полиамид","57% полиамид"]
[null,null,""]
[null,null,""]
[null,null,""]
[30,"эластан","30% эластан"]
[70,"полиамид","70% полиамид"]
[null,null,""]
[null,null,""]
[100,"хлопок","100% хлопок"]
[null,null,""]
[null,null,""]
[null,null,""]
[null,null,""]
[null,null,""]
[null,null,""]
[null,null,""]
[null,null,""]
[null,null,""]
[null,null,""]
[null,null,""]
[null,null,""]
[null,null,""]
[null,null,""]
[null,null,""]
[null,null,""]
[null,null,""]
[null,null,""]
[null,null,""]
[null,null,""]
[null,null,""]